bitfinex-derivatives/quotes_BNBF0:USTF0_20250305
["timestamp","ask_amount","ask_price","bid_price","bid_amount"]
[1741177383297,3.97506095,598.21,597.19,0.33490179]
[1741177383504,3.97506095,598.2,597.19,0.33490179]
[1741177383705,0.33431957,598.23,597.24,1.24697272]
[1741177384504,2.36904158,598.22,597.24,1.24697272]
[1741177384704,0.91116984,598.21,597.24,1.24697272]
[1741177384900,0.91116984,598.2,597.24,1.24697272]
[1741177385096,2.51658471,598.19,597.24,1.24697272]
[1741177385301,2.51658471,598.18,597.24,1.24697272]
[1741177385606,2.69458471,598.17,597.24,1.24697272]
[1741177385797,2.51658471,598.16,597.2,0.29110499]
[1741177386002,2.51658471,598.15,597.2,0.29110499]
[1741177386201,2.51658471,598.14,597.2,0.29110499]
[1741177386396,2.51658471,598.13,597.2,0.29110499]
[1741177386603,2.51658471,598.12,597.2,0.29110499]
[1741177386801,3.97445645,598.11,597.2,0.29110499]
[1741177387001,3.97445645,598.1,597.2,0.29110499]
[1741177387201,3.97342937,598.09,597.2,0.29110499]
[1741177387400,2.3680145,598.08,597.2,0.29110499]
[1741177387605,3.97194807,598.07,597.2,0.29110499]
[1741177387806,3.97194807,598.06,597.2,0.29110499]
[1741177388107,5.12138191,598.05,597.2,0.29110499]
[1741177388308,5.12138191,598.04,597.2,0.29110499]
[1741177388508,3.97194807,598.03,597.2,0.29110499]
[1741177388809,5.12138191,598.02,597.2,0.29110499]
[1741177389002,0.91077481,598.01,597.2,0.29110499]
[1741177389208,3.66400392,598.12,597.2,0.29110499]
[1741177389508,2.36749785,598.11,597.2,0.29110499]
[1741177389704,3.66400392,598.1,597.2,0.29110499]
[1741177389906,3.66400392,598.1,597.19,0.33490179]
[1741177389907,0.91077481,598.09,597.19,0.33490179]
[1741177390107,0.91077481,598.08,597.19,0.33490179]
[1741177390306,0.91077481,598.07,597.19,0.33490179]
[1741177390503,0.91077481,598.06,597.19,0.33490179]
[1741177391004,0.91077481,598.05,597.19,0.33490179]
[1741177391307,0.91077481,598.04,597.2,0.29115857]
[1741177392202,0.29115857,598.05,597.2,0.29115857]
[1741177392610,1.20193338,598.05,597.2,0.29115857]
[1741177393003,0.91077481,598.05,597.19,0.33490179]
[1741177393610,0.91077481,598.1,597.19,0.33490179]
[1741177393807,2.06020865,598.09,597.19,0.33490179]
[1741177394110,0.91077481,598.08,597.2,0.29115126]
[1741177394303,0.91077481,598.07,597.2,0.29115126]
[1741177394506,0.29115126,598.09,597.2,0.29115126]
[1741177394507,0.91077481,598.08,597.2,0.29115126]
[1741177394707,0.91077481,598.07,597.2,0.29115126]
[1741177394906,0.29115126,598.09,597.2,0.29115126]
[1741177394907,0.91077481,598.06,597.2,0.29115126]
[1741177395109,0.91077481,598.05,597.2,0.29115126]
[1741177395309,0.91077481,598.04,597.2,0.29115126]
[1741177395505,2.06020865,598.03,597.2,0.29115126]
[1741177395709,0.91077481,598.02,597.2,0.29115126]
[1741177395908,0.91077481,598.01,597.19,0.33490179]
[1741177396114,2.51413782,598.03,597.19,0.33490179]
[1741177396412,2.51413782,598.02,597.19,0.33490179]
[1741177396612,0.91077481,598.01,597.19,0.33490179]
[1741177396816,1.14943384,598.01,597.19,0.33490179]
[1741177397107,0.29117806,598.0,597.2,0.2911744]
[1741177397308,2.51377946,598.1,597.2,0.2911744]
[1741177397609,2.51377946,598.09,597.2,0.2911744]
[1741177397811,2.05972499,598.08,597.2,0.2911744]
[1741177398006,1.14943384,598.08,597.2,0.2911744]
[1741177398210,0.2911196,598.08,597.2,0.2911744]
[1741177398406,0.91029115,598.07,597.2,0.2911744]
[1741177398911,0.91029115,598.07,597.19,0.33490179]
[1741177398912,0.91029115,598.06,597.19,0.33490179]
[1741177399106,0.91077899,598.05,597.19,0.33490179]
[1741177399308,0.91077899,598.04,597.19,0.33490179]
[1741177399508,0.91077899,598.03,597.19,0.33490179]
[1741177399712,0.91077899,598.02,597.19,0.33490179]
[1741177399915,0.91077899,598.01,597.19,0.33490179]
[1741177400111,0.91112759,598.0,597.2,0.29117806]
[1741177400306,0.29117806,598.02,597.2,0.29117806]
[1741177400307,3.66657391,597.99,597.2,0.29117806]
[1741177400608,2.51714007,597.98,597.2,0.29117806]
[1741177400812,0.91149274,597.97,597.2,0.29117806]
[1741177401006,1.14943384,597.98,597.2,0.29117806]
[1741177401408,2.51787551,598.1,597.2,0.29117806]
[1741177401613,2.51787551,598.09,597.2,0.29117806]
[1741177401813,2.51787551,598.08,597.2,0.29117806]
[1741177402013,0.91199945,598.07,597.2,0.29117806]
[1741177402213,3.66947,598.06,597.2,0.29117806]
[1741177402413,0.91199945,598.05,597.2,0.29117806]
[1741177402611,0.91199945,598.04,597.2,0.29117806]
[1741177402810,0.91256882,598.03,597.2,0.29117806]
[1741177403008,0.91247885,598.02,597.2,0.29117806]
[1741177403209,1.15066555,598.01,597.2,0.29117806]
[1741177403411,1.4600407,598.1,597.2,0.29117806]
[1741177403714,2.52128388,598.09,597.2,0.29117806]
[1741177403916,3.67310849,598.08,597.2,0.29117806]
[1741177404117,3.9828089,598.07,597.2,0.29117806]
[1741177404317,3.67310849,598.06,597.2,0.29117806]
[1741177404611,3.67310849,598.05,597.2,0.29117806]
[1741177404814,2.52128388,598.04,597.2,0.29117806]
[1741177405015,3.67310849,598.03,597.2,0.29117806]
[1741177405212,3.98264449,598.02,597.2,0.29117806]
[1741177405412,2.52128388,598.01,597.2,0.29117806]
[1741177405613,2.52128388,598.0,597.2,0.29117806]
[1741177405812,2.52128388,597.99,597.2,0.29117806]
[1741177406013,2.52128388,597.98,597.2,0.29117806]
[1741177406308,1.15182461,598.0,597.2,0.29117806]
[1741177406309,3.67310849,597.97,597.2,0.29117806]
[1741177406516,2.52128388,597.96,597.2,0.29117806]
[1741177406716,2.52296692,597.95,597.2,0.29117806]
[1741177407015,1.15182461,597.94,597.2,0.29117806]
[1741177407514,1.15182461,597.93,597.2,0.29117806]
[1741177407716,3.0734877,598.08,597.2,0.29117806]
[1741177407919,0.178,597.92,597.19,0.33490179]
[1741177408310,0.178,597.92,597.2,0.291161]
[1741177410820,0.178,597.92,597.19,0.33490179]
[1741177411318,0.178,597.92,597.2,0.29111473]
[1741177413919,0.178,597.92,597.19,0.33490179]
[1741177414121,0.178,597.92,597.2,0.29111594]
[1741177416419,0.178,597.92,597.34,1.24697272]
[1741177417926,0.178,597.92,597.24,0.29109768]
[1741177419930,0.178,597.92,597.19,0.33490179]
[1741177420131,0.178,597.92,597.24,0.29111716]
[1741177422930,0.178,597.92,597.19,0.33490179]
[1741177424134,0.178,597.92,597.2,0.29112812]
[1741177425935,0.178,597.92,597.24,1.24697272]
[1741177427133,0.91632369,597.91,597.24,1.24697272]
[1741177427337,0.91630633,597.9,597.24,1.24697272]
[1741177427534,0.178,597.92,597.24,1.24697272]
[1741177427738,0.91635538,597.91,597.24,1.24697272]
[1741177427934,2.07236566,597.9,597.24,1.24697272]
[1741177428140,1.15601028,597.9,597.34,1.24697272]
[1741177428339,0.178,597.92,597.34,1.24697272]
[1741177428534,2.07272675,597.91,597.34,1.24697272]
[1741177428738,0.91652481,597.9,597.34,1.24697272]
[1741177428941,2.07272675,597.89,597.34,1.24697272]
[1741177429137,1.15620194,597.89,597.34,1.24697272]
[1741177429440,1.15620194,597.88,597.34,1.24697272]
[1741177429939,1.15620194,597.88,597.32,1.24697272]
[1741177430142,0.178,597.92,597.32,1.24697272]
[1741177430941,1.46669993,598.01,597.32,1.24697272]
[1741177431140,5.1551356,598.0,597.32,1.24697272]
[1741177431439,5.1551356,597.99,597.32,1.24697272]
[1741177431740,3.68843567,597.98,597.32,1.24697272]
[1741177431940,2.53185861,597.97,597.32,1.24697272]
[1741177432134,2.53185861,597.96,597.32,1.24697272]
[1741177432337,3.68843567,597.95,597.32,1.24697272]
[1741177432534,2.53185861,597.94,597.19,0.33490179]
[1741177432738,3.68843567,597.93,597.19,0.33490179]
[1741177432936,2.53185861,597.92,597.19,0.33490179]
[1741177433237,3.68975662,597.91,597.2,0.29115857]
[1741177433441,0.91682223,597.9,597.2,0.29115857]
[1741177433635,0.91682223,597.89,597.2,0.29115857]
[1741177433839,1.15657706,597.89,597.2,0.29115857]
[1741177434043,1.09559481,597.88,597.2,0.29115857]
[1741177434237,0.91759481,597.87,597.2,0.29115857]
[1741177434441,1.15657706,597.86,597.2,0.29115857]
[1741177435143,0.178,597.88,597.2,0.29115857]
[1741177435543,0.91812595,597.87,597.2,0.29115857]
[1741177435843,1.15819445,597.86,597.2,0.29115857]
[1741177436442,0.178,597.88,597.2,0.29115857]
[1741177436443,1.15819445,597.85,597.2,0.29115857]
[1741177437044,1.15819445,597.84,597.2,0.29115857]
[1741177437244,1.61785197,597.83,597.2,0.29115857]
[1741177437444,2.5362511,597.82,597.2,0.29115857]
[1741177437744,0.91843366,597.81,597.2,0.29115857]
[1741177437945,0.91843366,597.8,597.19,0.33490179]
[1741177438145,0.91832632,597.79,597.19,0.33490179]
[1741177438346,1.15819445,597.8,597.19,0.33490179]
[1741177438546,0.91834364,597.79,597.19,0.33490179]
[1741177438848,1.15819445,597.79,597.19,0.33490179]
[1741177439046,1.15819445,597.78,597.19,0.33490179]
[1741177439247,1.15819445,597.78,597.2,0.29116709]
[1741177439648,0.178,597.88,597.2,0.29116709]
[1741177439949,2.53599681,597.87,597.2,0.29116709]
[1741177440142,2.53599681,597.86,597.2,0.29116709]
[1741177440339,2.53599681,597.85,597.2,0.29116709]
[1741177440542,0.91832548,597.84,597.2,0.29116709]
[1741177440746,1.15847883,597.83,597.27,1.24697272]
[1741177441547,0.178,597.88,597.27,1.24697272]
[1741177442549,0.178,597.88,597.2,0.29116709]
[1741177443849,0.178,597.88,597.19,0.33490179]
[1741177444247,0.178,597.88,597.2,0.29106481]
[1741177444951,0.178,597.88,597.25,1.24697272]
[1741177447252,0.178,597.88,597.22,0.2910782]
[1741177448852,0.178,597.88,597.23,0.33487935]
[1741177449259,0.178,597.88,597.33,1.24697272]
[1741177451460,0.178,597.88,597.43,1.24697272]
[1741177453959,0.178,597.88,597.33,0.29103317]
[1741177455956,0.178,597.88,597.23,0.33487935]
[1741177456156,0.178,597.88,597.33,0.29104655]
[1741177456354,0.178,597.88,597.23,0.33487935]
[1741177457154,2.53302698,598.16,597.24,0.29108064]
[1741177457358,2.53302698,598.15,597.24,0.29108064]
[1741177457563,2.53302698,598.14,597.24,0.29108064]
[1741177457764,5.15755427,598.13,597.24,0.29108064]
[1741177457959,4.00079754,598.12,597.24,0.29108064]
[1741177458157,4.00079754,598.11,597.24,0.29108064]
[1741177458364,4.00079754,598.1,597.24,0.29108064]
[1741177458558,4.00168501,598.09,597.24,0.29108064]
[1741177458762,3.69047235,598.08,597.24,0.29108064]
[1741177459063,2.53371562,598.07,597.24,0.29108064]
[1741177459257,4.00169031,598.06,597.24,0.29108064]
[1741177459459,3.69048791,598.05,597.3,1.24697272]
[1741177459664,4.00173214,598.04,597.3,1.24697272]
[1741177459964,3.69048791,598.03,597.3,1.24697272]
[1741177460164,2.53373118,598.02,597.3,1.24697272]
[1741177460358,2.53373118,598.01,597.3,1.24697272]
[1741177460558,2.53373118,598.0,597.3,1.24697272]
[1741177460763,1.33475673,598.02,597.3,1.24697272]
[1741177460764,2.53373118,597.99,597.3,1.24697272]
[1741177460964,2.53356176,597.98,597.3,1.24697272]
[1741177461160,3.69031849,597.97,597.3,1.24697272]
[1741177461361,2.53356176,597.96,597.25,1.24697272]
[1741177461562,3.69031849,597.95,597.25,1.24697272]
[1741177461864,2.53356176,597.94,597.25,1.24697272]
[1741177462066,3.69031849,597.93,597.25,1.24697272]
[1741177462264,2.53356176,597.92,597.25,1.24697272]
[1741177462565,2.53356176,597.91,597.25,1.24697272]
[1741177462866,3.69031849,597.9,597.25,1.24697272]
[1741177463064,2.53356176,597.89,597.25,1.24697272]
[1741177463264,0.91749643,597.88,597.25,1.24697272]
[1741177463465,0.91749643,597.88,597.23,0.33487935]
[1741177463466,0.91749643,597.87,597.23,0.33487935]
[1741177463765,1.15675673,597.86,597.23,0.33487935]
[1741177464361,1.15675673,597.85,597.23,0.33487935]
[1741177465066,1.61556523,597.95,597.23,0.33487935]
[1741177465259,2.53289601,597.94,597.23,0.33487935]
[1741177465464,0.91717926,597.93,597.23,0.33487935]
[1741177465661,0.91717926,597.92,597.23,0.33487935]
[1741177465962,0.91718592,597.91,597.23,0.33487935]
[1741177466167,1.15705095,597.93,597.23,0.33487935]
[1741177466467,1.15705095,597.9,597.23,0.33487935]
[1741177467166,1.15705095,597.89,597.23,0.33487935]
[1741177467465,1.6161116,597.99,597.23,0.33487935]
[1741177467665,2.53358645,597.98,597.23,0.33487935]
[1741177467865,3.69096849,597.97,597.23,0.33487935]
[1741177468064,2.53358645,597.96,597.23,0.33487935]
[1741177468265,2.53358645,597.95,597.23,0.33487935]
[1741177468465,0.91747485,597.94,597.23,0.33487935]
[1741177468659,0.91747485,597.93,597.23,0.33487935]
[1741177468860,1.15738204,597.92,597.23,0.33487935]
[1741177469365,2.07491577,597.91,597.23,0.33487935]
[1741177469676,1.15738204,597.91,597.23,0.33487935]
[1741177469864,1.15738204,597.9,597.23,0.33487935]
[1741177470463,1.61608138,597.98,597.23,0.33487935]
[1741177470665,2.53348381,597.97,597.23,0.33487935]
[1741177470961,3.69061956,597.96,597.23,0.33487935]
[1741177471266,0.91740243,597.95,597.23,0.33487935]
[1741177471468,1.46752154,598.03,597.23,0.33487935]
[1741177471668,2.53290259,598.02,597.23,0.33487935]
[1741177471869,2.53290259,598.01,597.23,0.33487935]
[1741177472069,0.91720466,598.0,597.23,0.33487935]
[1741177472267,0.91720466,597.99,597.23,0.33487935]
[1741177472470,1.15701395,598.01,597.23,0.33487935]
[1741177472763,0.91716346,598.0,597.23,0.33487935]
[1741177472964,2.07414725,597.99,597.23,0.33487935]
[1741177473170,0.91716346,597.98,597.23,0.33487935]
[1741177473464,1.15698379,597.97,597.23,0.33487935]
[1741177473868,0.98791238,598.23,597.23,0.33487935]
[1741177473869,1.61565982,598.03,597.23,0.33487935]
[1741177474069,2.53283575,598.02,597.23,0.33487935]
[1741177474273,2.53283575,598.01,597.23,0.33487935]
[1741177474463,3.6899471,598.0,597.23,0.33487935]
[1741177474663,0.91717593,597.99,597.23,0.33487935]
[1741177474963,5.15766975,597.98,597.23,0.33487935]
[1741177475163,4.0005584,597.97,597.23,0.33487935]
[1741177475367,3.69007032,597.96,597.23,0.33487935]
[1741177475563,2.53295897,597.95,597.23,0.33487935]
[1741177475766,3.69007032,597.94,597.23,0.33487935]
[1741177475969,2.53309102,597.93,597.23,0.33487935]
[1741177476167,2.53318166,597.92,597.23,0.33487935]
[1741177476365,2.07441933,597.91,597.23,0.33487935]
[1741177476563,0.91730798,597.9,597.23,0.33487935]
[1741177476867,2.07441933,597.89,597.23,0.33487935]
[1741177477064,0.91730382,597.88,597.23,0.33487935]
[1741177477269,2.07441517,597.87,597.23,0.33487935]
[1741177477468,1.15711135,597.87,597.23,0.33487935]
[1741177477967,1.15711135,597.86,597.23,0.33487935]
[1741177478368,1.46766533,597.98,597.23,0.33487935]
[1741177478569,2.53325126,597.97,597.23,0.33487935]
[1741177478771,3.69048445,597.96,597.23,0.33487935]
[1741177478968,2.53325126,597.95,597.23,0.33487935]
[1741177479167,2.53325126,597.94,597.23,0.33487935]
[1741177479365,3.69048445,597.93,597.23,0.33487935]
[1741177479567,2.53325126,597.92,597.23,0.33487935]
[1741177479766,0.91732644,597.91,597.23,0.33487935]
[1741177479971,2.07456177,597.9,597.23,0.33487935]
[1741177480172,1.15723319,597.89,597.23,0.33487935]
[1741177480870,1.46763674,597.99,597.23,0.33487935]
[1741177481069,2.53314967,597.98,597.23,0.33487935]
[1741177481269,1.1572204,597.97,597.23,0.33487935]
[1741177481974,0.178,598.01,597.23,0.33487935]
[1741177483177,0.178,598.01,597.37,1.24697272]
[1741177484978,0.178,598.01,597.38,1.24697272]
[1741177486674,0.178,598.01,597.37,1.24697272]
[1741177487483,1.15712778,598.2,597.37,1.24697272]
[1741177487682,0.29101735,598.33,597.37,1.24697272]
[1741177487683,1.61551573,598.28,597.37,1.24697272]
[1741177487879,2.53252008,598.27,597.37,1.24697272]
[1741177488081,2.53252008,598.26,597.37,1.24697272]
[1741177488285,2.53252008,598.25,597.37,1.24697272]
[1741177488583,3.68930152,598.24,597.37,1.24697272]
[1741177488779,0.91700435,598.23,597.37,1.24697272]
[1741177488990,3.08262237,598.5,597.28,0.33485132]
[1741177489182,3.99981298,598.49,597.28,0.33485132]
[1741177489378,3.99981298,598.48,597.28,0.33485132]
[1741177489681,5.1564424,598.47,597.28,0.33485132]
[1741177489984,3.99981298,598.46,597.28,0.33485132]
[1741177490186,3.99981298,598.45,597.28,0.33485132]
[1741177490485,3.99981298,598.44,597.28,0.33485132]
[1741177490684,3.99981298,598.43,597.28,0.33485132]
[1741177490990,3.68927218,598.42,597.28,0.33485132]
[1741177491183,2.53264276,598.41,597.46,1.24697272]
[1741177491387,0.91704867,598.4,597.46,1.24697272]
[1741177491587,0.91704867,598.39,597.46,1.24697272]
[1741177491791,0.91704867,598.38,597.46,1.24697272]
[1741177492090,0.91704867,598.37,597.46,1.24697272]
[1741177492287,1.15662942,598.39,597.46,1.24697272]
[1741177492483,0.178,598.45,597.47,0.33474484]
[1741177492787,0.9161793,598.44,597.47,0.33474484]
[1741177492985,2.07193862,598.43,597.47,0.33474484]
[1741177493185,1.15575932,598.43,597.47,0.33474484]
[1741177493585,0.178,598.45,597.47,0.33474484]
[1741177496194,2.06951248,598.44,597.47,0.33474484]
[1741177496394,0.91512222,598.43,597.47,0.33474484]
[1741177496590,0.91512222,598.42,597.47,0.33474484]
[1741177496788,0.91489362,598.41,597.47,0.33474484]
[1741177496991,1.15439026,598.42,597.47,0.33474484]
[1741177497192,1.15439026,598.4,597.47,0.33474484]
[1741177497394,0.91474834,598.39,597.47,0.33474484]
[1741177497695,1.15439026,598.39,597.47,0.33474484]
[1741177497890,0.178,598.45,597.47,0.33474484]
[1741177498093,2.52634826,598.44,597.47,0.33474484]
[1741177498390,3.68014429,598.43,597.47,0.33474484]
[1741177498594,2.52634826,598.42,597.47,0.33474484]
[1741177498796,0.91474954,598.41,597.47,0.33474484]
[1741177498997,0.91474954,598.4,597.47,0.33474484]
[1741177499193,0.91452931,598.39,597.47,0.33474484]
[1741177499396,1.15379603,598.4,597.47,0.33474484]
[1741177499697,2.0683351,598.39,597.47,0.33474484]
[1741177499891,1.15379603,598.39,597.47,0.33474484]
[1741177500094,1.15379603,598.38,597.47,0.33474484]
[1741177500797,0.178,598.45,597.47,0.33474484]
[1741177500994,2.52554866,598.44,597.47,0.33474484]
[1741177501196,2.52554866,598.43,597.47,0.33474484]
[1741177501489,2.52523225,598.42,597.47,0.33474484]
[1741177501695,2.52523225,598.41,597.47,0.33474484]
[1741177501894,0.91445549,598.4,597.47,0.33474484]
[1741177502090,1.15351613,598.39,597.47,0.33474484]
[1741177502794,0.178,598.45,597.47,0.33474484]
[1741177503299,1.15326762,598.44,597.47,0.33474484]
[1741177503696,0.178,598.45,597.47,0.33474484]
[1741177507802,0.178,598.45,597.49,1.24697272]
[1741177508004,0.178,598.45,597.51,0.33472243]
[1741177511504,0.91241619,598.44,597.51,0.33472243]
[1741177511807,0.91241619,598.43,597.51,0.33472243]
[1741177512010,4.22132508,598.54,597.51,0.33472243]
[1741177512011,3.06857764,598.53,597.51,0.33472243]
[1741177512203,3.98026804,598.52,597.51,0.33472243]
[1741177512405,3.98026804,598.51,597.51,0.33472243]
[1741177512604,2.52072645,598.5,597.51,0.33472243]
[1741177512803,2.52072645,598.49,597.51,0.33472243]
[1741177513002,2.52072645,598.48,597.51,0.33472243]
[1741177513205,2.52072645,598.47,597.51,0.33472243]
[1741177513406,2.52072645,598.46,597.51,0.33472243]
[1741177513707,3.97933056,598.45,597.51,0.33472243]
[1741177513910,0.29094436,598.49,597.51,0.33472243]
[1741177513911,5.132078,598.44,597.51,0.33472243]
[1741177514107,3.97933056,598.43,597.51,0.33472243]
[1741177514308,1.15274744,598.44,597.51,0.33472243]
[1741177514309,3.97933056,598.42,597.51,0.33472243]
[1741177514508,3.97933056,598.41,597.51,0.33472243]
[1741177514705,3.97933056,598.4,597.51,0.33472243]
[1741177514907,3.97883403,598.39,597.51,0.33472243]
[1741177515110,3.9788407,598.38,597.51,0.33472243]
[1741177515310,3.9788407,598.37,597.51,0.33472243]
[1741177515507,3.9788407,598.36,597.51,0.33472243]
[1741177515710,3.9788407,598.35,597.51,0.33472243]
[1741177515914,3.9785548,598.34,597.51,0.33472243]
[1741177516103,3.9785548,598.33,597.51,0.33472243]
[1741177516306,3.9785548,598.32,597.51,0.33472243]
[1741177516610,2.52072645,598.31,597.51,0.33472243]
[1741177516810,2.52072645,598.3,597.51,0.33472243]
[1741177517012,3.67347389,598.29,597.51,0.33472243]
[1741177517212,0.9116904,598.28,597.51,0.33472243]
[1741177517404,0.9116904,598.27,597.51,0.33472243]
[1741177517607,0.9116904,598.26,597.51,0.33472243]
[1741177517804,0.91093862,598.25,597.51,0.33472243]
[1741177518011,0.91090081,598.24,597.51,0.33472243]
[1741177518213,1.15274744,598.28,597.51,0.33472243]
[1741177518512,0.91086403,598.27,597.51,0.33472243]
[1741177518707,0.91086403,598.26,597.51,0.33472243]
[1741177518906,0.91086403,598.25,597.51,0.33472243]
[1741177519109,1.15274744,598.27,597.51,0.33472243]
[1741177519306,2.06371496,598.26,597.51,0.33472243]
[1741177519505,0.91096752,598.25,597.51,0.33472243]
[1741177519707,1.15274744,598.28,597.51,0.33472243]
[1741177520213,0.91096752,598.27,597.51,0.33472243]
[1741177520515,2.51593809,598.26,597.51,0.33472243]
[1741177520711,3.66868553,598.25,597.51,0.33472243]
[1741177520908,3.97320071,598.24,597.51,0.33472243]
[1741177521209,3.66868553,598.23,597.51,0.33472243]
[1741177521410,2.51593809,598.22,597.51,0.33472243]
[1741177521610,2.51593809,598.21,597.51,0.33472243]
[1741177521811,3.66868553,598.2,597.39,0.29109525]
[1741177522012,0.91096752,598.19,597.03,1.24697272]
[1741177522213,0.91096752,598.19,597.04,0.33498593]
[1741177522408,0.91096752,598.18,597.04,0.33498593]
[1741177522715,0.91096752,598.19,597.04,0.33498593]
[1741177522910,0.91096752,598.18,597.04,0.33498593]
[1741177523110,0.29109646,598.21,597.05,0.29109646]
[1741177523413,0.91096752,598.2,597.06,0.3349747]
[1741177523614,0.91096752,598.19,597.06,0.3349747]
[1741177523815,0.91096752,598.18,597.06,0.3349747]
[1741177524015,2.06371496,598.17,597.06,0.3349747]
[1741177524216,0.91096752,598.16,597.06,0.3349747]
[1741177524409,0.91096752,598.19,597.06,0.3349747]
[1741177524613,0.91096752,598.18,597.06,0.3349747]
[1741177524815,0.91096752,598.17,597.06,0.3349747]
[1741177525010,2.06371496,598.19,597.06,0.3349747]
[1741177525215,0.91096752,598.18,597.06,0.3349747]
[1741177525416,2.06371496,598.17,597.06,0.3349747]
[1741177525617,0.91096752,598.16,597.06,0.3349747]
[1741177525818,0.91096752,598.15,597.06,0.3349747]
[1741177526017,2.06371496,598.15,597.06,0.3349747]
[1741177526220,1.15274744,598.15,597.06,0.3349747]
[1741177526617,0.29112812,598.21,597.06,0.3349747]
[1741177526618,3.66835769,598.19,597.06,0.3349747]
[1741177526913,2.51561025,598.18,597.06,0.3349747]
[1741177527111,0.178,598.39,597.06,0.3349747]
[1741177527316,2.51733584,598.38,597.06,0.3349747]
[1741177527516,2.51733584,598.37,597.06,0.3349747]
[1741177527717,2.51733584,598.36,597.06,0.3349747]
[1741177528014,2.51733584,598.35,597.06,0.3349747]
[1741177528216,2.51733584,598.34,597.06,0.3349747]
[1741177528418,2.51733584,598.33,597.06,0.3349747]
[1741177528615,0.91153491,598.32,597.06,0.3349747]
[1741177528815,2.51733584,598.32,597.06,0.3349747]
[1741177529023,0.91153491,598.31,597.06,0.3349747]
[1741177529221,1.1501674,598.31,597.06,0.3349747]
[1741177529520,0.91153491,598.36,597.06,0.3349747]
[1741177529819,1.1501674,598.38,597.06,0.3349747]
[1741177530015,0.91230075,598.37,597.06,0.3349747]
[1741177530214,0.91230075,598.36,597.06,0.3349747]
[1741177530416,0.91230075,598.35,597.18,1.24697272]
[1741177530618,0.91230075,598.34,597.19,0.33490179]
[1741177530821,1.1501674,598.36,597.19,0.33490179]
[1741177531222,0.178,598.39,597.19,0.33490179]
[1741177532421,0.91269872,598.38,597.21,1.24697272]
[1741177532615,0.178,598.39,597.23,0.33487935]
[1741177533814,0.178,598.39,597.32,1.24697272]
[1741177534016,0.178,598.39,597.33,0.33482329]
[1741177536117,0.91320771,598.38,597.33,0.33482329]
[1741177536318,0.91320771,598.38,597.33,1.58179601]
[1741177536319,0.91320771,598.37,597.33,1.58179601]
[1741177536620,0.91320771,598.36,597.33,1.58179601]
[1741177536822,0.91320771,598.35,597.33,1.58179601]
[1741177537018,0.91320771,598.34,597.33,1.58179601]
[1741177537218,1.15195476,598.35,597.33,1.58179601]
[1741177537417,2.06556586,598.34,597.33,1.58179601]
[1741177537617,1.15195476,598.34,597.33,1.58179601]
[1741177537821,1.15195476,598.33,597.33,1.58179601]
[1741177538024,1.15195476,598.33,597.33,0.33482329]
[1741177538218,0.2909918,598.41,597.33,0.33482329]
[1741177538421,2.52356825,598.4,597.33,0.33482329]
[1741177538616,3.6764162,598.39,597.33,0.33482329]
[1741177538823,3.98546116,598.38,597.33,0.33482329]
[1741177539024,2.52356825,598.37,597.33,0.33482329]
[1741177539324,3.6764162,598.36,597.33,0.33482329]
[1741177539619,2.52356825,598.35,597.33,0.33482329]
[1741177539825,3.6764162,598.34,597.33,0.33482329]
[1741177540017,5.13976898,598.33,597.33,0.33482329]
[1741177540221,3.98692103,598.32,597.33,0.33482329]
[1741177540419,3.98692103,598.31,597.33,0.33482329]
[1741177540723,3.98692103,598.3,597.33,0.33482329]
[1741177540924,3.98692103,598.29,597.33,0.33482329]
[1741177541124,3.98692103,598.28,597.33,0.33482329]
[1741177541319,5.13976898,598.27,597.33,0.33482329]
[1741177541524,3.98692103,598.26,597.33,0.33482329]
[1741177541721,5.13976898,598.25,597.33,0.33482329]
[1741177541918,3.98692103,598.24,597.33,0.33482329]
[1741177542118,3.98692103,598.23,597.33,0.33482329]
[1741177542323,2.52440453,598.22,597.33,0.33482329]
[1741177542620,2.52440453,598.21,597.33,0.33482329]
[1741177542820,1.61051482,598.2,597.33,0.33482329]
[1741177543018,0.91388971,598.2,597.33,0.33482329]
[1741177543225,1.15284795,598.21,597.33,0.33482329]
[1741177543424,2.52436097,598.26,597.33,0.33482329]
[1741177543625,0.91388971,598.26,597.33,0.33482329]
[1741177543819,1.15284795,598.27,597.33,0.33482329]
[1741177544218,0.91388971,598.3,597.33,0.33482329]
[1741177544425,0.29108916,598.26,597.33,0.33482329]
[1741177544625,1.61044189,598.3,597.33,0.33482329]
[1741177544827,1.15284795,598.32,597.33,0.33482329]
[1741177545725,0.46901735,598.33,597.33,0.33482329]
[1741177546725,0.46901735,598.33,597.41,1.24697272]
[1741177547226,0.178,598.33,597.42,0.33477285]
[1741177549023,0.91446992,598.32,597.42,0.33477285]
[1741177549228,0.91446992,598.31,597.52,1.24697272]
[1741177549526,2.06732806,598.3,597.52,1.24697272]
[1741177549726,0.91448011,598.29,597.52,1.24697272]
[1741177549928,2.52555522,598.28,597.52,1.24697272]
[1741177550125,2.06732806,598.27,597.52,1.24697272]
[1741177550428,0.91448011,598.26,597.52,1.24697272]
[1741177550622,0.91448011,598.25,597.52,1.24697272]
[1741177550825,1.15284795,598.25,597.52,1.24697272]